[Event "IIFL WEALTH VI Mumbai Open 2021"]
[Site "Mumbai"]
[Date "2022.01.01"]
[Round "3.2"]
[White "Rachit H Gurnani"]
[Black "Ruturaj Rushikesh Dhotre"]
[Result "0-1"]
[ECO "C00"]
[WhiteElo "1840"]
[BlackElo "1547"]
[Annotator "NA RC"]
[PlyCount "106"]
[EventDate "2021.12.30"]
[EventType "swiss"]
[EventCountry "IND"]
[SourceTitle "playchess.com"]
[Source "ChessBase"]
[SourceQuality "1"]
[TimeControl "5400+30"]

{[%evp 15,106,4,7,0,0,-47,-12,-14,-3,32767,32767,32767,32767,32767,-66,-110,-44,-54,-57,-128,-131,-153,-141,-205,-191,-296,-297,-291,-307,-588,-324,-409,-335,-360,-391,32767,32767,32767,32767,32767,-256,-239,-168,-171,-162,-253,-268,-230,-147,-535,-391,-298,-449,-462,-322,-702,-523,-981,-1277,-1342,-1584,-1476,-1805,-29988,-29984,-29983,-3534,-2194,-29984,-29975,-29985,-29985,-29984,-29989,-29975,-29985,-29983,-29991,-29981,-5791,-29981,-4902,-29983,-4910,-29985,-12841,-12839,32767,32767,32767,32767,32767,-29984]} 1. e4 {[%emt 0:00:19]} e6 {[%emt 0:00:06]} 2. d3 {[%emt 0:00:15]} d5 {[%emt 0:00:43]} 3. Nd2 {[%emt 0:00:03]} Nf6 {[%emt 0:00:17]} 4. Ngf3 {[%emt 0:00:26]} c5 {[%emt 0:00:43]} 5. g3 {[%emt 0:00:57]} Nc6 {[%emt 0:01:10]} 6. Bg2 {[%emt 0:00:05]} g6 {[%emt 0:00:20]} 7. O-O {[%emt 0:05:57]} Bg7 {[%emt 0:01:30]} 8. exd5 {[%emt 0:13:41]} Nxd5 {[%emt 0:04:55]} 9. Nb3 {[%emt 0:11:03]} b6 $1 {[%emt 0:06:49]} 10. Qe2 {[%emt 0:07:32]} ({White should try} 10. d4 $11) 10... Bb7 {[%emt 0:01:45]} 11. a4 {[%emt 0:04:25]} O-O {[%emt 0:06:47]} 12. c3 {[%emt 0:08:44]} Ba6 {[%emt 0:08:11]} 13. Bg5 {[%emt 0:04:43]} Qc7 {[%emt 0:02:49]} 14. Rad1 {[%emt 0:01:26]} Rac8 {[%emt 0:09:46]} (14... h6 $5 {[%cal Rh6g5]} 15. Bc1 Rad8 $17) 15. Qe4 {[%emt 0:09:17]} (15. Ra1 $15) 15... Nce7 {[%emt 0:02:38]} ({Black should play} 15... h6 $17 16. Bd2 Rfd8) 16. Rfe1 {[%emt 0:02:17]} Nf5 {[%emt 0:03:38]} 17. Nbd2 {[%emt 0:05:00]} ({White should play} 17. Ra1 $15) 17... h6 {[%emt 0:04:52]} 18. Bf4 {[%emt 0:00:53]} Nxf4 {[%emt 0:03:43]} 19. gxf4 {[%emt 0:00:40]} (19. Qxf4 $17 {might work better.} Qxf4 20. gxf4) 19... Bb7 {[%emt 0:00:12]} 20. Qc4 {[%emt 0:02:56]} Bd5 {[%emt 0:07:08]} 21. Qa6 {[%emt 0:00:01]} Qxf4 {[%emt 0:02:45]} 22. Qxa7 $2 {[%emt 0:01:25]} (22. Re4 Bxe4 23. dxe4) 22... g5 {[%emt 0:00:52]} ({Stronger than} 22... Qg4 23. h3 Qf4 24. Qxb6 $17) 23. Ne4 {[%emt 0:05:15]} g4 {[%emt 0:05:00]} 24. Nfd2 {[%emt 0:00:13]} Nh4 {[%emt 0:00:07]} ({But not} 24... Be5 $2 25. Ng3 Ra8 26. Qxb6 $19) 25. c4 {[%emt 0:02:16]} Be5 {[%emt 0:01:44]} 26. Nf1 {[%emt 0:00:36]} Bc6 {[%emt 0:01:40]} 27. Bh1 {[%emt 0:05:49]} f5 $2 {[%emt 0:04:28]} (27... Nf3+ 28. Bxf3 gxf3) 28. Qe7 Ng6 {[%emt 0:09:15]} ({Not} 28... fxe4 29. Qxh4 Bd4 30. Rd2 $17) ({Weaker is} 28... Bxa4 29. Qxe6+ Kh8 30. Ng5) 29. Qxe6+ {[%emt 0:01:35] [#]} Kh7 $1 {[%emt 0:00:06]} 30. Ng5+ {[%emt 0:03:25]} (30. Nf6+ {was worth a try.} Rxf6 31. Qxc8 Bxh1 32. Qd7+ (32. Kxh1 Qf3+ 33. Kg1 Nf4) 32... Kg8 33. Qe8+ (33. Kxh1 $2 Qf3+ 34. Kg1 Nf4 $19) 33... Kg7 34. Ng3 (34. Kxh1 {is a self mate.} Qf3+ 35. Kg1 Nf4 36. Qe7+ Kg6 37. Qe8+ Kg5 38. Qg8+ Kh4)) 30... hxg5 {[%emt 0:01:15]} 31. Bxc6 $19 {[%emt 0:00:02]} Bd4 {[%emt 0:01:27]} 32. Ne3 $2 {[%emt 0:04:16]} (32. Rd2 $17 {nothing else works.}) 32... Rc7 {[%emt 0:00:02]} 33. Bg2 {[%emt 0:00:54]} Rf6 {[%emt 0:00:50]} ({Weaker is} 33... Be5 34. Nf1 $17) 34. Qe8 {[%emt 0:00:17]} Re7 {[%emt 0:00:09]} 35. Qc8 {[%emt 0:00:40]} (35. Qd8 $142 Rf8 36. Qd5) 35... Nh4 {[%emt 0:00:22]} ({Avoid the trap} 35... Bxe3 $2 36. fxe3 Rxe3 37. Qd7+ (37. Rxe3 $2 Qxe3+ 38. Kh1 Nf4 $19) 37... Kh6 38. Rf1 $17) 36. Kh1 {[%emt 0:00:35]} (36. Bd5 $142 Nf3+ 37. Bxf3 Qxf3 38. Rd2 (38. Qd8 $2 Rfe6 $19)) 36... Qxf2 37. Rf1 {[%emt 0:00:21]} Qxe3 {[%emt 0:00:30]} 38. Bd5 {[%emt 0:00:21]} Rg6 {[%emt 0:01:47]} 39. Rxf5 {[%emt 0:00:49]} Nxf5 {[%emt 0:00:36]} 40. Qxf5 {[%emt 0:00:13] [#]} Qf4 {[%emt 0:00:36]} (40... Qe1+ $142 $3 {[%mdl 512]} 41. Qf1 Qxf1+ 42. Rxf1 Rf6 43. Bg2 Rxf1+ 44. Bxf1 Re1 45. Kg2 Kg6 46. b3 Rb1 47. a5 Rb2+ 48. Be2 Rxe2+ 49. Kf1 Rxh2 50. axb6 g3 51. b7 g2+ 52. Ke2 g1=Q+ 53. Kf3 Qg2#) 41. Be4 {[%emt 0:00:31] [#]} Rxe4 $1 {[%emt 0:01:39]} 42. dxe4 {[%emt 0:00:30]} Qf3+ {[%emt 0:00:26]} 43. Qxf3 {[%emt 0:00:09]} gxf3 {[%emt 0:00:06]} 44. b4 {[%emt 0:00:29]} Re6 {[%emt 0:00:24]} 45. b5 {[%emt 0:00:31]} Rxe4 {[%emt 0:00:15]} 46. Rf1 {[%emt 0:00:16]} f2 {[%emt 0:00:11]} 47. Kg2 {[%emt 0:00:34]} Rg4+ {[%emt 0:00:08]} 48. Kf3 {[%emt 0:01:01]} Rg1 {[%emt 0:00:21]} 49. Ke2 {[%emt 0:00:01]} Rxf1 {[%emt 0:00:51]} 50. Kxf1 {[%emt 0:00:02]} Kg6 {[%emt 0:00:09]} 51. Ke2 {[%emt 0:00:39]} Kh5 {[%emt 0:00:04]} 52. Kf1 {[%emt 0:00:06]} Kg4 {[%emt 0:00:07]} 53. Kg2 {[%emt 0:00:07]} Kh4 {[%emt 0:00:05]} 0-1

[Event "IIFL WEALTH VI Mumbai Open 2021"]
[Site "Mumbai"]
[Date "2022.01.01"]
[Round "3.3"]
[White "Riyan Amit Shah"]
[Black "Krishnan Ritvik"]
[Result "0-1"]
[ECO "B29"]
[WhiteElo "1544"]
[BlackElo "1750"]
[Annotator "NA RC"]
[PlyCount "70"]
[EventDate "2021.12.30"]
[EventType "swiss"]
[EventCountry "IND"]
[SourceTitle "playchess.com"]
[Source "ChessBase"]
[SourceQuality "1"]
[TimeControl "5400+30"]

1. e4 {[%emt 0:00:01]} c5 {[%emt 0:00:10]} 2. Nf3 {[%emt 0:00:02]} Nf6 {[%emt 0:00:14]} 3. e5 {[%emt 0:00:18]} Nd5 {[%emt 0:00:08]} 4. d4 {[%emt 0:00:01]} cxd4 {[%emt 0:00:21]} 5. Qxd4 {[%emt 0:00:09]} e6 {[%emt 0:01:11]} 6. Bc4 {[%emt 0:01:19]} Nc6 {[%emt 0:08:17]} 7. Qe4 {[%emt 0:03:23]} d6 {[%emt 0:10:44]} 8. Bxd5 {[%emt 0:07:33]} exd5 {[%emt 0:00:14]} 9. Qe2 {[%emt 0:00:07]} Be6 {[%emt 0:01:45]} 10. O-O {[%emt 0:00:28]} dxe5 {[%emt 0:01:00]} 11. Nxe5 Bd6 {[%emt 0:00:50]} 12. Bf4 {[%emt 0:15:11]} Qf6 {[%emt 0:12:10]} 13. Nxc6 {[%emt 0:03:14]} Qxf4 {[%emt 0:02:10]} 14. g3 {[%emt 0:00:23]} Qf6 {[%emt 0:05:02]} 15. Nb4 {[%emt 0:00:09]} O-O {[%emt 0:04:36]} 16. Nd3 {[%emt 0:00:13]} Bh3 {[%emt 0:01:38]} 17. Re1 {[%emt 0:01:10]} Rae8 {[%emt 0:03:58]} 18. Qd1 {[%emt 0:03:28]} Rxe1+ {[%emt 0:02:01]} 19. Nxe1 {[%emt 0:00:02]} Qxb2 {[%emt 0:00:53]} 20. Nd2 {[%emt 0:00:03]} Bg4 {[%emt 0:08:08]} 21. Ndf3 {[%emt 0:02:49]} Re8 {[%emt 0:05:37]} 22. Rb1 {[%emt 0:04:51]} Qxa2 {[%emt 0:00:28]} 23. Rb3 {[%emt 0:00:07]} Qa5 {[%emt 0:03:08]} 24. Rxb7 {[%emt 0:00:15]} Bh3 {[%emt 0:03:00]} 25. Nd3 {[%emt 0:01:58]} Bc8 {[%emt 0:02:13]} 26. Rb1 {[%emt 0:01:01]} Qc3 {[%emt 0:01:31]} 27. Rb3 {[%emt 0:05:33]} Qc4 {[%emt 0:00:23]} 28. Qd2 {[%emt 0:05:46]} Bg4 {[%emt 0:03:14]} 29. Nfe5 {[%emt 0:09:05]} Bxe5 {[%emt 0:05:18]} 30. Rb4 {[%emt 0:01:25]} Qc8 {[%emt 0:01:50]} 31. Qg5 {[%emt 0:00:18]} Bf5 {[%emt 0:02:53]} 32. Nxe5 {[%emt 0:01:55]} Rxe5 {[%emt 0:00:42]} 33. g4 {[%emt 0:00:03]} Be4 {[%emt 0:02:03]} 34. Qxe5 {[%emt 0:01:06]} Qxg4+ {[%emt 0:00:12]} 35. Kf1 {[%emt 0:00:57]} Qd1# {[%emt 0:00:07]} 0-1

[Event "IIFL WEALTH VI Mumbai Open 2021"]
[Site "Mumbai"]
[Date "2022.01.01"]
[Round "3.4"]
[White "Sangoi Hriday"]
[Black "Raghu Ram Reddy Seelam"]
[Result "1/2-1/2"]
[ECO "D31"]
[WhiteElo "1523"]
[BlackElo "1712"]
[Annotator "NA RC"]
[PlyCount "62"]
[EventDate "2021.12.30"]
[EventType "swiss"]
[EventCountry "IND"]
[SourceTitle "playchess.com"]
[Source "ChessBase"]
[SourceQuality "1"]
[TimeControl "5400+30"]

1. d4 {[%emt 0:00:04]} d5 {[%emt 0:00:05]} 2. c4 {[%emt 0:00:14]} e6 {[%emt 0:00:26]} 3. Nc3 {[%emt 0:00:11]} Be7 {[%emt 0:00:24]} 4. Bf4 {[%emt 0:00:29]} Nf6 {[%emt 0:00:06]} 5. e3 {[%emt 0:00:15]} O-O {[%emt 0:00:23]} 6. Nf3 {[%emt 0:00:19]} b6 {[%emt 0:00:50]} 7. Be2 {[%emt 0:00:42]} Bb7 {[%emt 0:00:09]} 8. O-O {[%emt 0:00:11]} Nbd7 {[%emt 0:03:22]} 9. Rc1 {[%emt 0:07:09]} a6 {[%emt 0:03:36]} 10. cxd5 {[%emt 0:03:35]} exd5 {[%emt 0:00:18]} 11. Ne5 {[%emt 0:01:03]} Rc8 {[%emt 0:10:33]} 12. Qb3 {[%emt 0:08:25]} b5 {[%emt 0:09:10]} 13. Nxd7 {[%emt 0:02:54]} Qxd7 {[%emt 0:00:12]} 14. Be5 {[%emt 0:02:20]} c6 {[%emt 0:02:31]} 15. h3 {[%emt 0:06:25]} Ra8 {[%emt 0:04:50]} 16. Bf3 {[%emt 0:04:02]} Kh8 {[%emt 0:07:24]} 17. Rfe1 {[%emt 0:07:02]} h6 {[%emt 0:07:00]} 18. e4 {[%emt 0:12:25]} dxe4 {[%emt 0:01:59]} 19. Nxe4 {[%emt 0:00:20]} Nxe4 {[%emt 0:00:45]} 20. Bxe4 {[%emt 0:00:09]} Bd6 {[%emt 0:02:39]} 21. Qf3 {[%emt 0:08:16]} Bxe5 {[%emt 0:03:00]} 22. dxe5 {[%emt 0:00:09]} Rad8 {[%emt 0:04:05]} 23. Bxc6 {[%emt 0:05:33]} Bxc6 {[%emt 0:00:09]} 24. Qxc6 {[%emt 0:00:07]} Qxc6 {[%emt 0:01:32]} 25. Rxc6 {[%emt 0:00:02]} Rd2 {[%emt 0:00:11]} 26. Rxa6 {[%emt 0:02:30]} Rxb2 {[%emt 0:00:05]} 27. Rb6 {[%emt 0:00:22]} Ra8 {[%emt 0:02:47]} 28. Rb7 Kg8 29. Rd1 Raxa2 30. Rd8+ Kh7 31. Rxf7 Ra8 1/2-1/2

[Event "IIFL WEALTH VI Mumbai Open 2021"]
[Site "Mumbai"]
[Date "2022.01.01"]
[Round "3.5"]
[White "Alvares Sidarth"]
[Black "Joglekar, Abhijit"]
[Result "1-0"]
[ECO "B24"]
[WhiteElo "1513"]
[BlackElo "1690"]
[Annotator "NA RC"]
[PlyCount "67"]
[EventDate "2021.12.30"]
[EventType "swiss"]
[EventCountry "IND"]
[SourceTitle "playchess.com"]
[Source "ChessBase"]
[SourceQuality "1"]
[TimeControl "5400+30"]

1. e4 c5 {[%emt 0:00:06]} 2. Nc3 {[%emt 0:00:18]} Nc6 {[%emt 0:00:08]} 3. Bc4 {[%emt 0:00:36]} e6 {[%emt 0:00:35]} 4. d3 {[%emt 0:00:18]} Nf6 {[%emt 0:00:14]} 5. Bb3 {[%emt 0:04:35]} d5 {[%emt 0:04:19]} 6. Bg5 {[%emt 0:02:17]} d4 7. Nce2 {[%emt 0:00:29]} Be7 {[%emt 0:04:46]} 8. Ng3 {[%emt 0:04:30]} O-O {[%emt 0:06:08]} 9. N1e2 {[%emt 0:02:05]} Na5 {[%emt 0:07:01]} 10. O-O {[%emt 0:02:22]} e5 {[%emt 0:06:06]} 11. Bxf6 {[%emt 0:00:42]} Bxf6 {[%emt 0:00:15]} 12. f4 {[%emt 0:00:50]} Nxb3 {[%emt 0:04:38]} 13. axb3 {[%emt 0:00:15]} exf4 {[%emt 0:03:47]} 14. Nxf4 {[%emt 0:00:30]} Be5 {[%emt 0:01:10]} 15. Qh5 {[%emt 0:03:19]} Qd6 {[%emt 0:03:45]} 16. Nge2 {[%emt 0:26:27]} Bd7 {[%emt 0:06:44]} 17. g4 {[%emt 0:07:05]} g6 {[%emt 0:04:56]} 18. Qh4 {[%emt 0:01:08]} a6 {[%emt 0:09:20]} 19. Nd5 {[%emt 0:03:42]} f6 {[%emt 0:12:13]} 20. Rf2 {[%emt 0:04:58]} Qe6 {[%emt 0:04:27]} 21. h3 {[%emt 0:04:45]} Bc6 {[%emt 0:02:19]} 22. Ndf4 {[%emt 0:06:46]} Qd7 {[%emt 0:03:21]} 23. Qh6 {[%emt 0:01:15]} Rae8 {[%emt 0:02:05]} 24. Raf1 {[%emt 0:04:27]} Rf7 {[%emt 0:05:35]} 25. Ng2 {[%emt 0:00:30]} Rg7 {[%emt 0:06:24]} 26. g5 fxg5 {[%emt 0:00:30]} 27. Qxg5 {[%emt 0:05:28]} Qxh3 {[%emt 0:00:54]} 28. Qxe5 {[%emt 0:00:26]} Rge7 {[%emt 0:00:16]} 29. Qxc5 {[%emt 0:01:13]} Re5 {[%emt 0:01:29]} 30. Rf8+ {[%emt 0:01:12]} Kg7 {[%emt 0:00:07]} 31. Qxd4 {[%emt 0:00:49]} Kh6 {[%emt 0:01:06]} 32. Rxe8 {[%emt 0:00:30]} Rxe8 {[%emt 0:00:01]} 33. Qf6 {[%emt 0:01:02]} Qc8 {[%emt 0:01:11]} 34. Rf4 {[%emt 0:00:44]} 1-0

[Event "IIFL WEALTH VI Mumbai Open 2021"]
[Site "Mumbai"]
[Date "2022.01.02"]
[Round "4.2"]
[White "Krishnan Ritvik"]
[Black "Shah Devansh"]
[Result "1-0"]
[ECO "C55"]
[WhiteElo "1750"]
[BlackElo "1589"]
[Annotator "NA"]
[PlyCount "53"]
[EventDate "2021.12.30"]
[EventType "swiss"]
[EventCountry "IND"]
[SourceTitle "playchess.com"]
[Source "ChessBase"]
[SourceQuality "1"]
[TimeControl "5400+30"]

1. e4 {[%emt 0:00:03]} e5 {[%emt 0:00:04]} 2. Nf3 {[%emt 0:00:05]} Nc6 {[%emt 0:00:03]} 3. Bc4 {[%emt 0:00:06]} Nf6 {[%emt 0:00:04]} 4. d3 {[%emt 0:00:05]} h6 {[%emt 0:00:03]} 5. O-O {[%emt 0:00:06]} d6 {[%emt 0:00:03]} 6. c3 {[%emt 0:00:08]} g5 {[%emt 0:00:04]} 7. a4 {[%emt 0:00:11]} Bg7 {[%emt 0:00:08]} 8. Re1 {[%emt 0:00:25]} a6 {[%emt 0:00:05]} 9. h3 {[%emt 0:01:13]} g4 {[%emt 0:00:48]} 10. hxg4 {[%emt 0:02:03]} Bxg4 {[%emt 0:00:15]} 11. Nbd2 {[%emt 0:03:59]} Qe7 {[%emt 0:00:54]} 12. b4 {[%emt 0:09:23]} Nh5 {[%emt 0:07:08]} 13. Nf1 {[%emt 0:04:52]} Rg8 {[%emt 0:05:15]} 14. Ne3 {[%emt 0:04:25]} Be6 {[%emt 0:08:16]} 15. Bxe6 {[%emt 0:03:50]} fxe6 {[%emt 0:00:40]} 16. Nxe5 {[%emt 0:02:08]} Bxe5 {[%emt 0:15:43]} 17. Qxh5+ {[%emt 0:00:10]} Kd7 {[%emt 0:00:04]} 18. d4 {[%emt 0:02:08]} Rg5 {[%emt 0:03:30]} 19. Qh3 {[%emt 0:00:47]} Nxd4 {[%emt 0:16:53]} 20. cxd4 {[%emt 0:02:11]} Bxd4 {[%emt 0:00:05]} 21. Nd5 {[%emt 0:03:56]} Qf7 {[%emt 0:01:36]} 22. Bxg5 {[%emt 0:06:48]} Bxf2+ {[%emt 0:04:00]} 23. Kh1 {[%emt 0:00:10]} hxg5 {[%emt 0:00:51]} 24. Rf1 {[%emt 0:03:19]} Qg7 {[%emt 0:02:30]} 25. Rac1 {[%emt 0:05:10]} c6 {[%emt 0:04:31]} 26. Rxf2 {[%emt 0:00:27]} cxd5 {[%emt 0:00:54]} 27. Rfc2 {[%emt 0:01:30]} 1-0

[Event "IIFL WEALTH VI Mumbai Open 2021"]
[Site "Mumbai"]
[Date "2022.01.02"]
[Round "4.3"]
[White "Ruturaj Rushikesh Dhotre"]
[Black "Majumder Shrayan"]
[Result "0-1"]
[ECO "C04"]
[WhiteElo "1547"]
[BlackElo "1669"]
[Annotator "NA RC"]
[PlyCount "106"]
[EventDate "2021.12.30"]
[EventType "swiss"]
[EventCountry "IND"]
[SourceTitle "playchess.com"]
[Source "ChessBase"]
[SourceQuality "1"]
[TimeControl "5400+30"]

1. e4 {[%emt 0:00:04]} e6 {[%emt 0:00:12]} 2. d4 {[%emt 0:00:06]} d5 {[%emt 0:00:05]} 3. Nd2 {[%emt 0:00:05]} Nc6 {[%emt 0:00:07]} 4. Ngf3 {[%emt 0:00:44]} Nf6 {[%emt 0:00:08]} 5. e5 {[%emt 0:00:41]} Nd7 {[%emt 0:00:07]} 6. Bd3 {[%emt 0:04:54]} f6 {[%emt 0:00:10]} 7. O-O {[%emt 0:05:42]} fxe5 {[%emt 0:08:26]} 8. Nxe5 {[%emt 0:00:29]} Ndxe5 {[%emt 0:02:52]} 9. dxe5 {[%emt 0:00:40]} Nxe5 {[%emt 0:03:59]} 10. Qh5+ {[%emt 0:00:12]} Nf7 {[%emt 0:00:06]} 11. Bxh7 {[%emt 0:18:41]} g6 {[%emt 0:01:23]} 12. Qxg6 {[%emt 0:00:41]} Qh4 {[%emt 0:00:06]} 13. Nf3 {[%emt 0:06:13]} Qxh7 {[%emt 0:00:11]} 14. Qf6 {[%emt 0:01:21]} e5 {[%emt 0:07:48]} 15. Bg5 {[%emt 0:10:17]} Nxg5 {[%emt 0:16:05]} 16. Qxg5 {[%emt 0:00:37]} Qf5 {[%emt 0:14:02]} 17. Qxf5 {[%emt 0:02:20]} Bxf5 {[%emt 0:00:06]} 18. Nxe5 {[%emt 0:00:10]} Bd6 {[%emt 0:02:05]} 19. Rfe1 {[%emt 0:04:52]} Be4 {[%emt 0:02:03]} 20. Ng4 {[%emt 0:02:06]} O-O-O {[%emt 0:00:27]} 21. h3 {[%emt 0:04:04]} Bxc2 {[%emt 0:02:56]} 22. Ne5 {[%emt 0:02:59]} Bxe5 {[%emt 0:03:06]} 23. Rxe5 {[%emt 0:00:12]} d4 {[%emt 0:01:20]} 24. Re2 {[%emt 0:00:07]} d3 {[%emt 0:00:33]} 25. Rd2 {[%emt 0:00:06]} Rde8 {[%emt 0:01:02]} 26. f4 {[%emt 0:00:44]} Re4 {[%emt 0:03:32]} 27. f5 {[%emt 0:00:43]} Rf4 {[%emt 0:02:28]} 28. Rf1 {[%emt 0:00:16]} Rxf1+ {[%emt 0:01:16]} 29. Kxf1 {[%emt 0:00:08]} Rh5 {[%emt 0:00:08]} 30. Rf2 {[%emt 0:04:06]} Rxf5 {[%emt 0:02:04]} 31. Rxf5 {[%emt 0:00:21]} d2 {[%emt 0:00:04]} 32. Rd5 {[%emt 0:00:06]} d1=Q+ {[%emt 0:00:11]} 33. Rxd1 {[%emt 0:00:05]} Bxd1 34. Kf2 {[%emt 0:01:06]} Kd7 {[%emt 0:00:28]} 35. Ke3 {[%emt 0:01:10]} Ke6 {[%emt 0:00:45]} 36. Kd4 {[%emt 0:02:17]} Be2 37. Ke3 {[%emt 0:02:09]} Bf1 {[%emt 0:05:02]} 38. Kf2 Bc4 39. b3 {[%emt 0:00:40]} Bd5 {[%emt 0:00:54]} 40. g4 {[%emt 0:00:29]} Ke5 {[%emt 0:00:44]} 41. Kg3 {[%emt 0:00:39]} a5 {[%emt 0:00:49]} 42. h4 {[%emt 0:00:16]} a4 {[%emt 0:00:47]} 43. bxa4 {[%emt 0:00:07]} Bxa2 {[%emt 0:00:14]} 44. a5 {[%emt 0:00:35]} Ke4 {[%emt 0:02:36]} 45. h5 {[%emt 0:01:30]} c5 {[%emt 0:00:35]} 46. Kf2 {[%emt 0:00:22]} Kd3 {[%emt 0:05:17]} 47. g5 {[%emt 0:01:12]} Bf7 {[%emt 0:05:38]} 48. g6 {[%emt 0:00:19]} Be8 {[%emt 0:00:05]} 49. Ke1 {[%emt 0:03:24]} c4 {[%emt 0:00:23]} 50. Kd1 {[%emt 0:00:39]} c3 {[%emt 0:00:13]} 51. Kc1 {[%emt 0:00:05]} c2 {[%emt 0:00:22]} 52. g7 {[%emt 0:01:23]} Bf7 {[%emt 0:00:07]} 53. h6 {[%emt 0:00:05]} Bg8 {[%emt 0:00:14]} 0-1

[Event "IIFL WEALTH VI Mumbai Open 2021"]
[Site "Mumbai"]
[Date "2022.01.02"]
[Round "4.4"]
[White "Bajaj Prakhar"]
[Black "Alvares Sidarth"]
[Result "0-1"]
[ECO "B40"]
[WhiteElo "1663"]
[BlackElo "1513"]
[Annotator "NA RC"]
[PlyCount "58"]
[EventDate "2021.12.30"]
[EventType "swiss"]
[EventCountry "IND"]
[SourceTitle "playchess.com"]
[Source "ChessBase"]
[SourceQuality "1"]
[TimeControl "5400+30"]

1. e4 {[%emt 0:00:05]} c5 {[%emt 0:00:07]} 2. Nf3 {[%emt 0:00:06]} e6 {[%emt 0:00:19]} 3. b3 {[%emt 0:01:09]} d5 {[%emt 0:02:50]} 4. exd5 {[%emt 0:03:29]} exd5 {[%emt 0:00:25]} 5. Bb5+ {[%emt 0:02:53]} Bd7 {[%emt 0:07:13]} 6. Bxd7+ {[%emt 0:05:49]} Qxd7 {[%emt 0:02:36]} 7. O-O {[%emt 0:03:47]} Bd6 {[%emt 0:02:37]} 8. Bb2 {[%emt 0:19:00]} d4 {[%emt 0:11:21]} 9. Na3 {[%emt 0:14:08]} Ne7 {[%emt 0:02:28]} 10. Nc4 {[%emt 0:00:29]} Nbc6 {[%emt 0:01:36]} 11. a4 {[%emt 0:03:00]} O-O {[%emt 0:09:19]} 12. Ng5 {[%emt 0:07:57]} b6 {[%emt 0:05:53]} 13. c3 {[%emt 0:11:12]} Bf4 {[%emt 0:04:25]} 14. Nh3 {[%emt 0:03:40]} Bh6 {[%emt 0:00:35]} 15. Qh5 {[%emt 0:03:05]} Rad8 {[%emt 0:08:51]} 16. b4 {[%emt 0:06:41]} cxb4 {[%emt 0:02:43]} 17. cxb4 {[%emt 0:03:59]} Nxb4 {[%emt 0:01:09]} 18. Ne5 {[%emt 0:01:36]} Qd5 {[%emt 0:01:27]} 19. Ba3 {[%emt 0:01:33]} a5 {[%emt 0:05:17]} 20. Bxb4 {[%emt 0:00:58]} axb4 {[%emt 0:00:12]} 21. Qe2 {[%emt 0:00:50]} d3 {[%emt 0:03:34]} 22. Nxd3 {[%emt 0:00:07]} Nc6 {[%emt 0:01:49]} 23. Nb2 {[%emt 0:01:40]} Qb3 {[%emt 0:04:57]} 24. Qc4 {[%emt 0:01:48]} Na5 {[%emt 0:00:18]} 25. Qxb3 {[%emt 0:00:58]} Nxb3 {[%emt 0:00:07]} 26. Rad1 {[%emt 0:00:04]} Nxd2 {[%emt 0:00:35]} 27. Rfe1 {[%emt 0:00:07]} Rd4 {[%emt 0:04:04]} 28. f4 {[%emt 0:01:01]} Rfd8 {[%emt 0:00:53]} 29. Nc4 {[%emt 0:00:53]} Nf3+ {[%emt 0:00:58]} 0-1

[Event "IIFL WEALTH VI Mumbai Open 2021"]
[Site "Mumbai"]
[Date "2022.01.02"]
[Round "4.5"]
[White "Ajay Santhosh Parvathareddy"]
[Black "Iyer Arvind"]
[Result "0-1"]
[ECO "D05"]
[WhiteElo "1512"]
[BlackElo "1662"]
[Annotator "NA RC"]
[PlyCount "104"]
[EventDate "2021.12.30"]
[EventType "swiss"]
[EventCountry "IND"]
[SourceTitle "playchess.com"]
[Source "ChessBase"]
[SourceQuality "1"]
[TimeControl "5400+30"]

1. d4 Nf6 {[%emt 0:04:46]} 2. Nf3 {[%emt 0:00:32]} e6 {[%emt 0:00:34]} 3. e3 {[%emt 0:00:05]} d5 {[%emt 0:00:24]} 4. Bd3 {[%emt 0:00:06]} Bd6 {[%emt 0:00:21]} 5. O-O {[%emt 0:00:07]} c5 {[%emt 0:00:58]} 6. c3 {[%emt 0:00:06]} Nc6 {[%emt 0:00:26]} 7. Nbd2 {[%emt 0:00:08]} O-O {[%emt 0:05:31]} 8. dxc5 {[%emt 0:00:04]} Bxc5 {[%emt 0:00:58]} 9. e4 {[%emt 0:00:07]} e5 {[%emt 0:04:00]} 10. exd5 {[%emt 0:00:07]} Qxd5 {[%emt 0:09:00]} 11. Qc2 {[%emt 0:00:06]} h6 {[%emt 0:05:12]} 12. b4 {[%emt 0:02:53]} Bb6 {[%emt 0:05:08]} 13. b5 {[%emt 0:01:54]} Nb8 {[%emt 0:03:11]} 14. c4 {[%emt 0:01:33]} Qd6 {[%emt 0:01:23]} 15. Bb2 {[%emt 0:03:10]} Nbd7 {[%emt 0:05:09]} 16. Ne4 {[%emt 0:01:31]} Nxe4 {[%emt 0:00:30]} 17. Bxe4 {[%emt 0:00:30]} Re8 {[%emt 0:08:27]} 18. Rad1 {[%emt 0:06:24]} Qe7 {[%emt 0:01:38]} 19. Bh7+ {[%emt 0:28:47]} Kh8 {[%emt 0:05:59]} 20. Rfe1 {[%emt 0:03:07]} Bc7 {[%emt 0:03:52]} 21. Bf5 {[%emt 0:03:08]} f6 {[%emt 0:03:22]} 22. Nh4 {[%emt 0:05:12]} Nf8 {[%emt 0:01:10]} 23. Re3 {[%emt 0:00:57]} Bxf5 {[%emt 0:02:14]} 24. Nxf5 {[%emt 0:00:07]} Qf7 {[%emt 0:01:14]} 25. Rg3 {[%emt 0:00:45]} Ne6 {[%emt 0:01:29]} 26. Qe4 {[%emt 0:14:38]} Rad8 {[%emt 0:03:44]} 27. Rf1 {[%emt 0:01:00]} Ng5 {[%emt 0:03:25]} 28. Qxb7 {[%emt 0:02:47]} e4 {[%emt 0:00:57]} 29. Qc6 {[%emt 0:09:46]} Bxg3 {[%emt 0:00:33]} 30. fxg3 Qe6 {[%emt 0:02:17]} 31. Qc5 {[%emt 0:00:52]} Qb6 {[%emt 0:00:41]} 32. Qxb6 {[%emt 0:00:33]} axb6 {[%emt 0:00:01]} 33. Bc1 {[%emt 0:00:39]} Re6 {[%emt 0:04:53]} 34. Be3 {[%emt 0:00:29]} Rd3 {[%emt 0:00:49]} 35. h4 {[%emt 0:00:40]} Nf7 {[%emt 0:02:02]} 36. c5 bxc5 {[%emt 0:00:30]} 37. Rb1 {[%emt 0:03:20]} g6 {[%emt 0:02:42]} 38. Nxh6 {[%emt 0:03:19]} Nxh6 {[%emt 0:01:12]} 39. Bxh6 {[%emt 0:00:07]} e3 {[%emt 0:00:38]} 40. Kf1 {[%emt 0:00:19]} e2+ {[%emt 0:00:11]} 41. Ke1 {[%emt 0:00:08]} c4 {[%emt 0:00:16]} 42. b6 {[%emt 0:00:23]} Rd1+ {[%emt 0:00:07]} 43. Rxd1 {[%emt 0:00:05]} exd1=Q+ {[%emt 0:00:05]} 44. Kxd1 {[%emt 0:00:09]} Rxb6 {[%emt 0:00:05]} 45. Kc2 {[%emt 0:00:31]} Ra6 {[%emt 0:00:13]} 46. Kc3 {[%emt 0:00:21]} Rxa2 {[%emt 0:00:19]} 47. Kxc4 {[%emt 0:00:06]} Rxg2 {[%emt 0:00:02]} 48. Bg7+ Kxg7 {[%emt 0:00:37]} 49. Kd4 {[%emt 0:00:15]} Re2 {[%emt 0:00:54]} 50. Kd3 {[%emt 0:00:16]} Re8 {[%emt 0:00:29]} 51. Kd4 {[%emt 0:00:05]} Kf7 {[%emt 0:00:04]} 52. Kd5 {[%emt 0:00:06]} Re1 {[%emt 0:00:36]} 0-1